[Event "Titled Tuesday Blitz January 10 Early 2023"]
[White "Rosh Jain"]
[Black "Wahedi, Ahmad Siar"]
[WhiteFideId "25789465"]
[BlackFideId "4651260"]
[WhiteElo "2248"]
[BlackElo "2274"]
[Result "0-1"]
[Round "03"]
[TimeControl "180+2"]
[Date "2023.01.10"]
[WhiteClock "0:00:02"]
[BlackClock "0:01:07"]

1. e4 {[%clk 0:02:54]}  e6 {[%clk 0:02:58]} 2. d4 {[%clk 0:02:53]}  d5 {[%clk 0:02:58]} 3. Nc3 {[%clk 0:02:53]}  Bb4 {[%clk 0:02:55]} 4. exd5 {[%clk 0:02:53]}  exd5 {[%clk 0:02:55]} 5. Qf3 {[%clk 0:02:48]}  c6 {[%clk 0:02:55]} 6. Bd3 {[%clk 0:02:46]}  Qf6 {[%clk 0:02:54]} 7. Bf4 {[%clk 0:02:37]}  Be6 {[%clk 0:02:39]} 8. Ne2 {[%clk 0:02:29]}  Nd7 {[%clk 0:02:38]} 9. Kd1 {[%clk 0:02:26]}  h6 {[%clk 0:02:37]} 10. h4 {[%clk 0:02:20]}  Ne7 {[%clk 0:02:36]} 11. Kd2 {[%clk 0:02:18]}  Ng6 {[%clk 0:02:34]} 12. Rae1 {[%clk 0:02:14]}  Nxh4 {[%clk 0:02:32]} 13. Qg3 {[%clk 0:02:07]}  Nf5 {[%clk 0:02:31]} 14. Bxf5 {[%clk 0:02:02]}  Qxf5 {[%clk 0:02:31]} 15. Qxg7 {[%clk 0:01:51]}  O-O-O {[%clk 0:02:31]} 16. Qg3 {[%clk 0:01:48]}  Rdg8 {[%clk 0:02:30]} 17. Qf3 {[%clk 0:01:41]}  h5 {[%clk 0:02:26]} 18. Ng3 {[%clk 0:01:36]}  Qg4 {[%clk 0:02:23]} 19. Qxg4 {[%clk 0:01:35]}  Rxg4 {[%clk 0:02:21]} 20. Nxh5 {[%clk 0:00:54]}  Rxh5 {[%clk 0:02:18]} 21. Rxh5 {[%clk 0:00:53]}  Rxf4 {[%clk 0:02:18]} 22. f3 {[%clk 0:00:50]}  Rxd4+ {[%clk 0:02:17]} 23. Ke3 {[%clk 0:00:49]}  Bc5 {[%clk 0:02:13]} 24. Ke2 {[%clk 0:00:45]}  Nf6 {[%clk 0:01:58]} 25. Rh8+ {[%clk 0:00:43]}  Kc7 {[%clk 0:01:58]} 26. a3 {[%clk 0:00:42]}  Rc4 {[%clk 0:01:57]} 27. Kd2 {[%clk 0:00:37]}  Bd4 {[%clk 0:01:57]} 28. g4 {[%clk 0:00:34]}  Nd7 {[%clk 0:01:52]} 29. Rh5 {[%clk 0:00:30]}  Bxc3+ {[%clk 0:01:47]} 30. bxc3 {[%clk 0:00:29]}  Nc5 {[%clk 0:01:46]} 31. Rhe5 {[%clk 0:00:21]}  Na4 {[%clk 0:01:45]} 32. g5 {[%clk 0:00:20]}  Rxc3 {[%clk 0:01:41]} 33. f4 {[%clk 0:00:05]}  Rf3 {[%clk 0:01:38]} 34. g6 {[%clk 0:00:02]}  Rxf4 {[%clk 0:01:37]} 35. Rg5 {[%clk 0:00:02]}  fxg6 {[%clk 0:01:07]} 0-1


[Site "https://www.chess.com"]

[Event "Titled Tuesday Blitz January 10 Early 2023"]
[White "Mogirzan, Matei-Valeriu"]
[Black "Souza, Gustavo Horokoski De"]
[WhiteFideId "1257455"]
[BlackFideId "2146584"]
[WhiteElo "1813"]
[BlackElo "1943"]
[Result "1-0"]
[Round "03"]
[TimeControl "180+2"]
[Date "2023.01.10"]
[WhiteClock "0:01:13"]
[BlackClock "0:01:10"]

1. e4 {[%clk 0:02:51]}  e6 {[%clk 0:02:58]} 2. d4 {[%clk 0:02:49]}  d5 {[%clk 0:02:58]} 3. Nd2 {[%clk 0:02:50]}  Nc6 {[%clk 0:02:54]} 4. c3 {[%clk 0:02:42]}  e5 {[%clk 0:02:53]} 5. exd5 {[%clk 0:02:39]}  Qxd5 {[%clk 0:02:53]} 6. dxe5 {[%clk 0:02:34]}  Qxe5+ {[%clk 0:02:49]} 7. Be2 {[%clk 0:02:32]}  Nf6 {[%clk 0:02:40]} 8. Ngf3 {[%clk 0:02:31]}  Qh5 {[%clk 0:02:13]} 9. Nd4 {[%clk 0:02:13]}  Qc5 {[%clk 0:02:12]} 10. N2b3 {[%clk 0:02:04]}  Qd6 {[%clk 0:02:12]} 11. O-O {[%clk 0:02:01]}  Nxd4 {[%clk 0:02:11]} 12. Nxd4 {[%clk 0:02:02]}  Bd7 {[%clk 0:02:04]} 13. Qb3 {[%clk 0:01:54]}  c5 {[%clk 0:01:47]} 14. Nb5 {[%clk 0:01:37]}  Qb6 {[%clk 0:01:45]} 15. Bf4 {[%clk 0:01:30]}  Rc8 {[%clk 0:01:44]} 16. Rfe1 {[%clk 0:01:25]}  Be6 {[%clk 0:01:44]} 17. Qa4 {[%clk 0:01:21]}  Qc6 {[%clk 0:01:34]} 18. Bf3 {[%clk 0:01:18]}  Nd5 {[%clk 0:01:10]} 19. Bxd5 {[%clk 0:01:13]} 1-0


[Site "https://www.chess.com"]

[Event "Titled Tuesday Blitz January 10 Early 2023"]
[White "Fajdetic, Hrvoje"]
[Black "Kaminski, Victor"]
[WhiteFideId "14501945"]
[BlackFideId "1131630"]
[WhiteElo "2151"]
[BlackElo "2247"]
[Result "1/2-1/2"]
[Round "03"]
[TimeControl "180+2"]
[Date "2023.01.10"]
[WhiteClock "0:00:16"]
[BlackClock "0:00:12"]

1. d4 {[%clk 0:02:46]}  Nf6 {[%clk 0:02:59]} 2. Bf4 {[%clk 0:02:44]}  c5 {[%clk 0:02:59]} 3. d5 {[%clk 0:02:43]}  e6 {[%clk 0:02:59]} 4. Nc3 {[%clk 0:02:38]}  d6 {[%clk 0:02:58]} 5. e4 {[%clk 0:02:35]}  exd5 {[%clk 0:02:58]} 6. exd5 {[%clk 0:02:35]}  Be7 {[%clk 0:02:59]} 7. Be2 {[%clk 0:02:34]}  O-O {[%clk 0:03:00]} 8. Nf3 {[%clk 0:02:34]}  a6 {[%clk 0:03:00]} 9. a4 {[%clk 0:02:34]}  Bf5 {[%clk 0:02:59]} 10. O-O {[%clk 0:02:33]}  Nbd7 {[%clk 0:02:59]} 11. Nd2 {[%clk 0:02:29]}  Re8 {[%clk 0:02:56]} 12. Nc4 {[%clk 0:02:29]}  Nf8 {[%clk 0:02:54]} 13. h3 {[%clk 0:02:16]}  Ng6 {[%clk 0:02:52]} 14. Bh2 {[%clk 0:02:15]}  Ne4 {[%clk 0:02:41]} 15. Nxe4 {[%clk 0:02:14]}  Bxe4 {[%clk 0:02:42]} 16. Bf3 {[%clk 0:02:08]}  Bf5 {[%clk 0:02:39]} 17. Bg4 {[%clk 0:02:03]}  Bxg4 {[%clk 0:02:37]} 18. Qxg4 {[%clk 0:02:04]}  b5 {[%clk 0:02:17]} 19. axb5 {[%clk 0:01:59]}  axb5 {[%clk 0:02:18]} 20. Rxa8 {[%clk 0:01:56]}  Qxa8 {[%clk 0:02:19]} 21. Nxd6 {[%clk 0:01:52]}  Bxd6 {[%clk 0:02:19]} 22. Bxd6 {[%clk 0:01:53]}  Qxd5 {[%clk 0:02:19]} 23. Rd1 {[%clk 0:01:47]}  Qc6 {[%clk 0:02:01]} 24. c4 {[%clk 0:01:43]}  bxc4 {[%clk 0:01:50]} 25. Bg3 {[%clk 0:01:35]}  c3 {[%clk 0:01:36]} 26. bxc3 {[%clk 0:01:29]}  h6 {[%clk 0:01:37]} 27. h4 {[%clk 0:01:20]}  Re4 {[%clk 0:01:34]} 28. Rd8+ {[%clk 0:01:15]}  Kh7 {[%clk 0:01:34]} 29. Qf5 {[%clk 0:01:14]}  Qe6 {[%clk 0:01:27]} 30. Qxe6 {[%clk 0:01:08]}  fxe6 {[%clk 0:01:23]} 31. Rd6 {[%clk 0:00:58]}  Nxh4 {[%clk 0:01:21]} 32. Bxh4 {[%clk 0:00:55]}  Rxh4 {[%clk 0:01:22]} 33. Rxe6 {[%clk 0:00:55]}  Rc4 {[%clk 0:01:21]} 34. Re3 {[%clk 0:00:56]}  Ra4 {[%clk 0:01:18]} 35. Kf1 {[%clk 0:00:54]}  Ra2 {[%clk 0:01:15]} 36. Re5 {[%clk 0:00:52]}  Rc2 {[%clk 0:01:08]} 37. Rxc5 {[%clk 0:00:51]}  g5 {[%clk 0:01:09]} 38. g4 {[%clk 0:00:50]}  Kg6 {[%clk 0:01:07]} 39. Kg2 {[%clk 0:00:49]}  Kg7 {[%clk 0:01:01]} 40. Kf3 {[%clk 0:00:49]}  Kg6 {[%clk 0:00:59]} 41. Ke3 {[%clk 0:00:49]}  Kg7 {[%clk 0:01:00]} 42. f3 {[%clk 0:00:48]}  Kg6 {[%clk 0:00:59]} 43. Kd3 {[%clk 0:00:48]}  Rf2 {[%clk 0:00:59]} 44. Rf5 {[%clk 0:00:47]}  h5 {[%clk 0:00:58]} 45. f4 {[%clk 0:00:22]}  Rxf4 {[%clk 0:00:39]} 46. Rxf4 {[%clk 0:00:21]}  gxf4 {[%clk 0:00:40]} 47. gxh5+ {[%clk 0:00:21]}  Kxh5 {[%clk 0:00:39]} 48. c4 {[%clk 0:00:18]}  Kg4 {[%clk 0:00:24]} 49. Ke2 {[%clk 0:00:18]}  f3+ {[%clk 0:00:11]} 50. Kf2 {[%clk 0:00:17]}  Kf4 {[%clk 0:00:12]} 51. c5 {[%clk 0:00:17]}  Ke5 {[%clk 0:00:12]} 52. Kxf3 {[%clk 0:00:16]}  Kd5 {[%clk 0:00:12]} 53. Kg2 {[%clk 0:00:16]}  Kxc5 {[%clk 0:00:12]} 1/2-1/2


[Site "https://www.chess.com"]

[Event "Titled Tuesday Blitz January 10 Early 2023"]
[White "Baruch, Liam"]
[Black "Nugumanov, Bakhtiyar"]
[WhiteFideId "14322064"]
[BlackFideId "13701797"]
[WhiteElo "1718"]
[BlackElo "2316"]
[Result "0-1"]
[Round "03"]
[TimeControl "180+2"]
[Date "2023.01.10"]
[WhiteClock "0:00:53"]
[BlackClock "0:00:53"]

1. e4 {[%clk 0:02:56]}  d6 {[%clk 0:02:59]} 2. d4 {[%clk 0:02:56]}  Nf6 {[%clk 0:02:59]} 3. Nc3 {[%clk 0:02:56]}  e5 {[%clk 0:03:00]} 4. Nf3 {[%clk 0:02:46]}  exd4 {[%clk 0:02:58]} 5. Nxd4 {[%clk 0:02:47]}  Be7 {[%clk 0:02:59]} 6. Bd3 {[%clk 0:02:47]}  O-O {[%clk 0:03:00]} 7. O-O {[%clk 0:02:46]}  c6 {[%clk 0:02:54]} 8. Be3 {[%clk 0:02:45]}  b5 {[%clk 0:02:52]} 9. a3 {[%clk 0:02:43]}  a5 {[%clk 0:02:38]} 10. f4 {[%clk 0:02:40]}  Ng4 {[%clk 0:02:29]} 11. Bd2 {[%clk 0:02:34]}  Qb6 {[%clk 0:02:26]} 12. Ne2 {[%clk 0:02:23]}  c5 {[%clk 0:02:24]} 13. h3 {[%clk 0:02:17]}  Nf6 {[%clk 0:02:01]} 14. Be3 {[%clk 0:01:52]}  cxd4 {[%clk 0:01:57]} 15. Bxd4 {[%clk 0:01:53]}  Qb7 {[%clk 0:01:57]} 16. Ng3 {[%clk 0:01:49]}  Nc6 {[%clk 0:01:55]} 17. Bc3 {[%clk 0:01:43]}  b4 {[%clk 0:01:49]} 18. axb4 {[%clk 0:01:40]}  axb4 {[%clk 0:01:49]} 19. Bd2 {[%clk 0:01:41]}  Qb6+ {[%clk 0:01:46]} 20. Kh1 {[%clk 0:01:40]}  Rxa1 {[%clk 0:01:46]} 21. Qxa1 {[%clk 0:01:40]}  Be6 {[%clk 0:01:42]} 22. Qe1 {[%clk 0:01:31]}  Qd4 {[%clk 0:01:17]} 23. e5 {[%clk 0:01:26]}  dxe5 {[%clk 0:01:16]} 24. fxe5 {[%clk 0:01:24]}  Qxe5 {[%clk 0:01:15]} 25. Qf2 {[%clk 0:01:20]}  Bc5 {[%clk 0:01:12]} 26. Qf4 {[%clk 0:01:17]}  Qxf4 {[%clk 0:01:10]} 27. Bxf4 {[%clk 0:01:17]}  Nd5 {[%clk 0:01:03]} 28. Bd2 {[%clk 0:01:15]}  Ne5 {[%clk 0:01:03]} 29. Be4 {[%clk 0:01:07]}  Rd8 {[%clk 0:01:01]} 30. Bc1 {[%clk 0:01:02]}  Nf6 {[%clk 0:00:55]} 31. Bf3 {[%clk 0:01:00]}  Bc4 {[%clk 0:00:54]} 32. Re1 {[%clk 0:00:54]}  Nxf3 {[%clk 0:00:54]} 33. gxf3 {[%clk 0:00:53]}  Bf2 {[%clk 0:00:53]} 0-1


[Site "https://www.chess.com"]

[Event "Titled Tuesday Blitz January 10 Early 2023"]
[White "Larina, Maria"]
[Black "Tworuszka, Michal"]
[WhiteFideId "24113182"]
[BlackFideId "1117858"]
[WhiteElo "1948"]
[BlackElo "2260"]
[Result "1-0"]
[Round "03"]
[TimeControl "180+2"]
[Date "2023.01.10"]
[WhiteClock "0:00:05"]
[BlackClock "0:00:01"]

1. e4 {[%clk 0:03:00]}  c5 {[%clk 0:02:57]} 2. Nc3 {[%clk 0:03:00]}  Nc6 {[%clk 0:02:53]} 3. g3 {[%clk 0:03:00]}  g6 {[%clk 0:02:50]} 4. Bg2 {[%clk 0:03:00]}  Bg7 {[%clk 0:02:51]} 5. Nge2 {[%clk 0:03:00]}  d6 {[%clk 0:02:51]} 6. d3 {[%clk 0:03:00]}  Nf6 {[%clk 0:02:48]} 7. O-O {[%clk 0:03:00]}  O-O {[%clk 0:02:48]} 8. f4 {[%clk 0:02:53]}  a6 {[%clk 0:02:47]} 9. a4 {[%clk 0:02:52]}  Rb8 {[%clk 0:02:43]} 10. h3 {[%clk 0:02:52]}  Bd7 {[%clk 0:02:39]} 11. g4 {[%clk 0:02:52]}  Ne8 {[%clk 0:02:38]} 12. f5 {[%clk 0:02:51]}  b5 {[%clk 0:02:34]} 13. axb5 {[%clk 0:02:51]}  axb5 {[%clk 0:02:34]} 14. g5 {[%clk 0:02:45]}  Be5 {[%clk 0:02:18]} 15. Bf4 {[%clk 0:02:38]}  Nc7 {[%clk 0:02:06]} 16. Bxe5 {[%clk 0:02:37]}  Nxe5 {[%clk 0:02:06]} 17. Nf4 {[%clk 0:02:31]}  b4 {[%clk 0:02:04]} 18. Ncd5 {[%clk 0:02:30]}  Nxd5 {[%clk 0:01:42]} 19. Nxd5 {[%clk 0:02:31]}  Bc6 {[%clk 0:01:33]} 20. f6 {[%clk 0:01:48]}  Bxd5 {[%clk 0:01:31]} 21. exd5 {[%clk 0:01:45]}  exf6 {[%clk 0:01:16]} 22. gxf6 {[%clk 0:01:45]}  Nd7 {[%clk 0:00:36]} 23. Qf3 {[%clk 0:01:45]}  Kh8 {[%clk 0:00:13]} 24. Qf4 {[%clk 0:01:44]}  Ne5 {[%clk 0:00:04]} 25. Ra7 {[%clk 0:01:37]}  Rg8 {[%clk 0:00:03]} 26. Re7 {[%clk 0:01:13]}  b3 {[%clk 0:00:01]} 27. c3 {[%clk 0:01:01]}  Qf8 {[%clk 0:00:01]} 28. Rxe5 {[%clk 0:00:46]}  dxe5 {[%clk 0:00:02]} 29. Qxe5 {[%clk 0:00:47]}  Rd8 {[%clk 0:00:01]} 30. c4 {[%clk 0:00:46]}  Qd6 {[%clk 0:00:01]} 31. Qg5 {[%clk 0:00:45]}  Rde8 {[%clk 0:00:01]} 32. Qg4 {[%clk 0:00:24]}  Re5 {[%clk 0:00:02]} 33. d4 {[%clk 0:00:17]}  cxd4 {[%clk 0:00:02]} 34. Qxd4 {[%clk 0:00:17]}  Rge8 {[%clk 0:00:02]} 35. c5 {[%clk 0:00:14]}  Qa6 {[%clk 0:00:02]} 36. d6 {[%clk 0:00:13]}  Re2 {[%clk 0:00:01]} 37. d7 {[%clk 0:00:11]}  Rd8 {[%clk 0:00:01]} 38. c6 {[%clk 0:00:08]}  Rxg2+ {[%clk 0:00:01]} 39. Kxg2 {[%clk 0:00:09]}  Qxc6+ {[%clk 0:00:02]} 40. Kh2 {[%clk 0:00:07]}  Qxd7 {[%clk 0:00:01]} 41. Qe5 {[%clk 0:00:04]}  Qd6 {[%clk 0:00:02]} 42. Re1 {[%clk 0:00:05]}  Qxe5+ {[%clk 0:00:02]} 43. Rxe5 {[%clk 0:00:06]}  Rb8 {[%clk 0:00:02]} 44. Re7 {[%clk 0:00:05]}  Kg8 {[%clk 0:00:02]} 45. Kg3 {[%clk 0:00:06]}  Kf8 {[%clk 0:00:03]} 46. Kf4 {[%clk 0:00:06]}  h6 {[%clk 0:00:02]} 47. Rc7 {[%clk 0:00:06]}  Rb4+ {[%clk 0:00:01]} 48. Ke5 {[%clk 0:00:06]}  Rb8 {[%clk 0:00:02]} 49. Kd6 {[%clk 0:00:06]}  Ke8 {[%clk 0:00:02]} 50. Kc5 {[%clk 0:00:06]}  Kf8 {[%clk 0:00:01]} 51. Kc4 {[%clk 0:00:06]}  g5 {[%clk 0:00:01]} 52. Ra7 {[%clk 0:00:05]}  h5 {[%clk 0:00:01]} 53. Ra3 {[%clk 0:00:05]}  Rc8+ {[%clk 0:00:01]} 54. Kd3 {[%clk 0:00:05]} 1-0


[Site "https://www.chess.com"]

[Event "Titled Tuesday Blitz January 10 Early 2023"]
[White "Brizzi, Milagros Tatiana"]
[Black "Jimenez, Joaquin"]
[WhiteFideId "128350"]
[BlackFideId "109860"]
[WhiteElo "2110"]
[BlackElo "2195"]
[Result "0-1"]
[Round "03"]
[TimeControl "180+2"]
[Date "2023.01.10"]
[WhiteClock "0:00:02"]
[BlackClock "0:00:46"]

1. e4 {[%clk 0:03:00]}  e5 {[%clk 0:02:59]} 2. Nf3 {[%clk 0:03:00]}  Nc6 {[%clk 0:02:59]} 3. d4 {[%clk 0:03:00]}  exd4 {[%clk 0:02:59]} 4. Nxd4 {[%clk 0:03:01]}  Nf6 {[%clk 0:02:59]} 5. Nc3 {[%clk 0:03:01]}  Bb4 {[%clk 0:02:58]} 6. Nxc6 {[%clk 0:02:59]}  bxc6 {[%clk 0:02:59]} 7. Bd3 {[%clk 0:02:58]}  d5 {[%clk 0:02:55]} 8. exd5 {[%clk 0:02:56]}  Qe7+ {[%clk 0:02:55]} 9. Qe2 {[%clk 0:02:53]}  cxd5 {[%clk 0:02:55]} 10. Qxe7+ {[%clk 0:02:50]}  Kxe7 {[%clk 0:02:52]} 11. O-O {[%clk 0:02:50]}  Be6 {[%clk 0:02:51]} 12. Bf4 {[%clk 0:02:46]}  c6 {[%clk 0:02:50]} 13. a3 {[%clk 0:02:41]}  Bd6 {[%clk 0:02:49]} 14. Bxd6+ {[%clk 0:02:40]}  Kxd6 {[%clk 0:02:49]} 15. b4 {[%clk 0:02:39]}  a5 {[%clk 0:02:39]} 16. Na4 {[%clk 0:02:27]}  axb4 {[%clk 0:02:36]} 17. axb4 {[%clk 0:02:28]}  Nd7 {[%clk 0:02:33]} 18. f4 {[%clk 0:02:17]}  g6 {[%clk 0:02:25]} 19. h3 {[%clk 0:02:07]}  h5 {[%clk 0:02:25]} 20. f5 {[%clk 0:01:48]}  gxf5 {[%clk 0:02:18]} 21. Nc3 {[%clk 0:01:35]}  Rxa1 {[%clk 0:02:13]} 22. Rxa1 {[%clk 0:01:34]}  Rb8 {[%clk 0:02:13]} 23. b5 {[%clk 0:01:33]}  c5 {[%clk 0:02:08]} 24. Ra6+ {[%clk 0:01:31]}  Ke5 {[%clk 0:02:07]} 25. Rc6 {[%clk 0:01:11]}  c4 {[%clk 0:01:59]} 26. Be2 {[%clk 0:01:09]}  h4 {[%clk 0:01:53]} 27. Kf2 {[%clk 0:00:31]}  Kd4 {[%clk 0:01:48]} 28. Nd1 {[%clk 0:00:20]}  Rxb5 {[%clk 0:01:35]} 29. Ne3 {[%clk 0:00:18]}  Rb2 {[%clk 0:01:29]} 30. Rc7 {[%clk 0:00:16]}  f4 {[%clk 0:01:25]} 31. c3+ {[%clk 0:00:12]}  Ke5 {[%clk 0:01:15]} 32. Ng4+ {[%clk 0:00:09]}  Kd6 {[%clk 0:01:04]} 33. Rc8 {[%clk 0:00:07]}  Nc5 {[%clk 0:01:03]} 34. Rd8+ {[%clk 0:00:06]}  Ke7 {[%clk 0:01:01]} 35. Rh8 {[%clk 0:00:04]}  Ne4+ {[%clk 0:01:01]} 36. Ke1 {[%clk 0:00:02]}  Nxc3 {[%clk 0:00:57]} 37. Bf3 {[%clk 0:00:01]}  Bxg4 {[%clk 0:00:51]} 38. hxg4 {[%clk 0:00:02]}  d4 {[%clk 0:00:47]} 39. g5 {[%clk 0:00:02]}  d3 {[%clk 0:00:46]} 40. Rc8 {[%clk 0:00:02]}  d2+ {[%clk 0:00:46]} 0-1


[Site "https://www.chess.com"]

[Event "Titled Tuesday Blitz January 10 Early 2023"]
[White "Necula, Iulian"]
[Black "Degtiarev, Evgeny"]
[WhiteFideId "1232380"]
[BlackFideId "4149610"]
[WhiteElo "1851"]
[BlackElo "2385"]
[Result "0-1"]
[Round "03"]
[TimeControl "180+2"]
[Date "2023.01.10"]
[WhiteClock "0:00:26"]
[BlackClock "0:00:17"]

1. d4 {[%clk 0:03:00]}  d5 {[%clk 0:02:58]} 2. Nc3 {[%clk 0:03:00]}  c6 {[%clk 0:02:59]} 3. Bf4 {[%clk 0:03:00]}  Nf6 {[%clk 0:02:58]} 4. e3 {[%clk 0:03:00]}  Nbd7 {[%clk 0:02:59]} 5. Bd3 {[%clk 0:02:54]}  g6 {[%clk 0:02:57]} 6. f3 {[%clk 0:02:44]}  Bg7 {[%clk 0:02:49]} 7. g4 {[%clk 0:02:43]}  O-O {[%clk 0:02:43]} 8. h4 {[%clk 0:02:43]}  e5 {[%clk 0:02:40]} 9. Bg5 {[%clk 0:02:39]}  exd4 {[%clk 0:02:35]} 10. exd4 {[%clk 0:02:38]}  Qb6 {[%clk 0:02:35]} 11. Nge2 {[%clk 0:02:36]}  Qxb2 {[%clk 0:02:28]} 12. Rb1 {[%clk 0:02:36]}  Qa3 {[%clk 0:02:28]} 13. Rb3 {[%clk 0:02:36]}  Qa5 {[%clk 0:02:15]} 14. Kf2 {[%clk 0:02:33]}  b5 {[%clk 0:01:56]} 15. a3 {[%clk 0:02:29]}  a6 {[%clk 0:01:45]} 16. Qd2 {[%clk 0:02:29]}  Qb6 {[%clk 0:01:38]} 17. h5 {[%clk 0:02:26]}  c5 {[%clk 0:01:34]} 18. dxc5 {[%clk 0:02:01]}  Nxc5 {[%clk 0:01:32]} 19. Be3 {[%clk 0:01:59]}  Nxb3 {[%clk 0:01:30]} 20. cxb3 {[%clk 0:01:57]}  d4 {[%clk 0:00:51]} 21. Nxd4 {[%clk 0:01:36]}  Nxg4+ {[%clk 0:00:49]} 22. fxg4 {[%clk 0:01:35]}  Bxd4 {[%clk 0:00:49]} 23. hxg6 {[%clk 0:01:30]}  Bxe3+ {[%clk 0:00:49]} 24. Qxe3 {[%clk 0:01:30]}  Qxe3+ {[%clk 0:00:49]} 25. Kxe3 {[%clk 0:01:30]}  hxg6 {[%clk 0:00:49]} 26. Nd5 {[%clk 0:01:26]}  Kg7 {[%clk 0:00:40]} 27. g5 {[%clk 0:01:26]}  Bb7 {[%clk 0:00:39]} 28. Be4 {[%clk 0:01:16]}  Rfe8 {[%clk 0:00:34]} 29. Kd4 {[%clk 0:01:15]}  Rxe4+ {[%clk 0:00:31]} 30. Kxe4 {[%clk 0:01:15]}  Re8+ {[%clk 0:00:31]} 31. Kd4 {[%clk 0:01:14]}  Rd8 {[%clk 0:00:31]} 32. Rc1 {[%clk 0:01:05]}  Rxd5+ {[%clk 0:00:30]} 33. Ke3 {[%clk 0:01:05]}  Rxg5 {[%clk 0:00:29]} 34. Rc7 {[%clk 0:01:05]}  Bd5 {[%clk 0:00:29]} 35. b4 {[%clk 0:01:03]}  Rf5 {[%clk 0:00:26]} 36. Kd4 {[%clk 0:01:02]}  Bc4 {[%clk 0:00:25]} 37. Rc6 {[%clk 0:01:01]}  Rf6 {[%clk 0:00:25]} 38. Rc5 {[%clk 0:00:56]}  Rd6+ {[%clk 0:00:23]} 39. Ke3 {[%clk 0:00:53]}  Kf6 {[%clk 0:00:19]} 40. a4 {[%clk 0:00:53]}  g5 {[%clk 0:00:19]} 41. Ke4 {[%clk 0:00:45]}  Kg6 {[%clk 0:00:17]} 42. a5 {[%clk 0:00:40]}  Re6+ {[%clk 0:00:17]} 43. Kf3 {[%clk 0:00:39]}  f5 {[%clk 0:00:16]} 44. Rc8 {[%clk 0:00:36]}  g4+ {[%clk 0:00:17]} 45. Kg3 {[%clk 0:00:34]}  Kf6 {[%clk 0:00:17]} 46. Rf8+ {[%clk 0:00:33]}  Ke5 {[%clk 0:00:18]} 47. Ra8 {[%clk 0:00:31]}  Ke4 {[%clk 0:00:17]} 48. Kf2 {[%clk 0:00:30]}  f4 {[%clk 0:00:17]} 49. Rd8 {[%clk 0:00:30]}  g3+ {[%clk 0:00:18]} 50. Ke1 {[%clk 0:00:29]}  Ke3 {[%clk 0:00:18]} 51. Rd2 {[%clk 0:00:28]}  f3 {[%clk 0:00:18]} 52. Kd1 {[%clk 0:00:27]}  Be2+ {[%clk 0:00:17]} 53. Kc2 {[%clk 0:00:26]}  Rc6+ {[%clk 0:00:17]} 0-1


[Site "https://www.chess.com"]

[Event "Titled Tuesday Blitz January 10 Early 2023"]
[White "Boraso, Alessio"]
[Black "Selkirk, Rebecca"]
[WhiteFideId "848077"]
[BlackFideId "14306514"]
[WhiteElo "2316"]
[BlackElo "1656"]
[Result "1-0"]
[Round "03"]
[TimeControl "180+2"]
[Date "2023.01.10"]
[WhiteClock "0:00:05"]
[BlackClock "0:00:04"]

1. e4 {[%clk 0:03:00]}  c5 {[%clk 0:02:59]} 2. Nf3 {[%clk 0:03:00]}  e6 {[%clk 0:02:58]} 3. d4 {[%clk 0:02:59]}  cxd4 {[%clk 0:02:59]} 4. Nxd4 {[%clk 0:03:00]}  a6 {[%clk 0:03:00]} 5. c4 {[%clk 0:03:00]}  Qc7 {[%clk 0:02:57]} 6. Nc3 {[%clk 0:03:00]}  Nf6 {[%clk 0:02:55]} 7. Be3 {[%clk 0:02:59]}  b6 {[%clk 0:02:54]} 8. Bd3 {[%clk 0:02:53]}  Bb7 {[%clk 0:02:54]} 9. O-O {[%clk 0:02:54]}  d6 {[%clk 0:02:54]} 10. Rc1 {[%clk 0:02:54]}  Nbd7 {[%clk 0:02:54]} 11. b3 {[%clk 0:02:54]}  Be7 {[%clk 0:02:53]} 12. Qe2 {[%clk 0:02:53]}  O-O {[%clk 0:02:52]} 13. Rfd1 {[%clk 0:02:54]}  Rac8 {[%clk 0:02:44]} 14. f4 {[%clk 0:02:53]}  Rfe8 {[%clk 0:02:24]} 15. f5 {[%clk 0:02:48]}  Bf8 {[%clk 0:02:12]} 16. Nd5 {[%clk 0:01:56]}  Qb8 {[%clk 0:02:04]} 17. fxe6 {[%clk 0:01:45]}  fxe6 {[%clk 0:02:02]} 18. Nc3 {[%clk 0:01:41]}  Ne5 {[%clk 0:01:46]} 19. Bg5 {[%clk 0:01:36]}  Nfd7 {[%clk 0:01:38]} 20. Rf1 {[%clk 0:01:29]}  Nc5 {[%clk 0:01:30]} 21. Bc2 {[%clk 0:01:27]}  Be7 {[%clk 0:01:28]} 22. Bf4 {[%clk 0:01:20]}  Ng6 {[%clk 0:01:03]} 23. Bg3 {[%clk 0:01:13]}  Bf6 {[%clk 0:01:02]} 24. Rxf6 {[%clk 0:00:53]}  gxf6 {[%clk 0:01:02]} 25. Rf1 {[%clk 0:00:49]}  Kg7 {[%clk 0:00:42]} 26. h4 {[%clk 0:00:43]}  Nd7 {[%clk 0:00:34]} 27. h5 {[%clk 0:00:38]}  Nge5 {[%clk 0:00:34]} 28. Nd1 {[%clk 0:00:30]}  b5 {[%clk 0:00:26]} 29. Ne3 {[%clk 0:00:24]}  bxc4 {[%clk 0:00:20]} 30. bxc4 {[%clk 0:00:24]}  Nxc4 {[%clk 0:00:13]} 31. Ng4 {[%clk 0:00:15]}  f5 {[%clk 0:00:08]} 32. exf5 {[%clk 0:00:11]}  e5 {[%clk 0:00:07]} 33. Ne6+ {[%clk 0:00:11]}  Kh8 {[%clk 0:00:05]} 34. Nh6 {[%clk 0:00:06]}  Re7 {[%clk 0:00:04]} 35. Bh4 {[%clk 0:00:05]} 1-0


[Site "https://www.chess.com"]